bitfinex-derivatives/quotes_SOLF0:USTF0_20260305
["timestamp","ask_amount","ask_price","bid_price","bid_amount"]
[1772706500385,3.57932566,92.289,92.197,3.383974]
[1772706500983,9.751,92.272,92.208,9.758]
[1772706501984,9.751,92.272,92.208,13.1399087]
[1772706502179,9.751,92.272,92.212,9.757]
[1772706502880,3.78421041,92.271,92.171,3.3819087]
[1772706503079,3.78421041,92.271,92.149,19.04534476]
[1772706503080,3.78421041,92.269,92.181,3.3819087]
[1772706503585,9.752,92.263,92.194,9.759]
[1772706504584,3.78421041,92.269,92.204,9.758]
[1772706506784,3.78421041,92.299,92.231,3.33399531]
[1772706506985,3.78421041,92.319,92.231,3.33399531]
[1772706507386,3.78421041,92.302,92.231,3.33399531]
[1772706507582,7.24821549,92.3,92.207,3.38669495]
[1772706507791,3.78421041,92.299,92.207,3.38669495]
[1772706508086,3.68426892,92.28,92.207,3.38669495]
[1772706508689,3.68426892,92.28,92.226,9.756]
[1772706510387,3.68426892,92.28,92.216,9.757]
[1772706510587,7.24821549,92.3,92.207,3.38669495]
[1772706510789,3.68426892,92.299,92.207,3.38669495]
[1772706510985,3.68426892,92.297,92.207,3.38669495]
[1772706511191,3.68426892,92.297,92.221,3.32466512]
[1772706511490,3.68426892,92.297,92.25,9.753]
[1772706512293,3.68426892,92.297,92.241,9.754]
[1772706512797,3.68426892,92.297,92.221,3.32466512]
[1772706513491,9.748,92.296,92.231,9.755]
[1772706513697,3.68426892,92.295,92.2,10.56462829]
[1772706513991,3.68426892,92.295,92.201,3.3164128]
[1772706514391,3.68426892,92.286,92.222,9.756]
[1772706515792,3.68426892,92.282,92.222,9.756]
[1772706516496,13.43426892,92.281,92.222,9.756]
[1772706516694,3.68426892,92.28,92.222,9.756]
[1772706516890,3.68426892,92.305,92.228,3.32634648]
[1772706517296,3.68426892,92.299,92.201,3.27773229]
[1772706518000,3.68426892,92.286,92.201,3.27773229]
[1772706519091,3.68426892,92.286,92.207,9.758]
[1772706519696,3.68426892,92.27,92.201,3.27773229]
[1772706520199,3.68426892,92.27,92.181,3.31451797]
[1772706520200,3.68426892,92.269,92.181,3.31451797]
[1772706520591,3.68426892,92.258,92.201,9.758]
[1772706520795,3.68426892,92.258,92.181,3.31451797]
[1772706521395,3.68426892,92.251,92.181,3.31451797]
[1772706521995,3.68426892,92.237,92.181,9.76]
[1772706522197,3.68426892,92.237,92.161,3.28718645]
[1772706522400,7.24821549,92.27,92.113,151.948]
[1772706522401,3.68426892,92.269,92.181,3.28718645]
[1772706522801,3.68426892,92.259,92.181,3.28718645]
[1772706523197,3.68426892,92.259,92.19,9.759]
[1772706523401,3.68426892,92.259,92.132,39.16735617]
[1772706523402,3.68426892,92.259,92.191,3.24823115]
[1772706523896,3.68426892,92.259,92.158,13.09023745]
[1772706524101,3.68426892,92.259,92.117,26.1804749]
[1772706524102,3.68426892,92.259,92.161,3.24823115]
[1772706524299,3.68426892,92.259,92.18,7.24821549]
[1772706524498,9.753,92.253,92.186,9.76]
[1772706524699,3.68426892,92.259,92.187,3.24823115]
[1772706524898,3.68426892,92.289,92.201,3.24823115]
[1772706525898,9.753,92.251,92.192,9.759]
[1772706526500,13.43726892,92.251,92.192,9.759]
[1772706526696,3.68426892,92.269,92.193,3.12361205]
[1772706526895,3.68426892,92.269,92.136,151.91]
[1772706526896,3.68426892,92.269,92.171,3.12361205]
[1772706527101,3.68426892,92.259,92.171,3.12361205]
[1772706528296,3.68426892,92.243,92.171,3.12361205]
[1772706528901,9.755,92.237,92.175,3.09051716]
[1772706529699,7.24821549,92.26,92.181,3.08286477]
[1772706529901,3.89115728,92.263,92.181,3.08286477]
[1772706530705,9.753,92.256,92.198,3.08286477]
[1772706531002,3.89115728,92.285,92.201,3.08286477]
[1772706531205,13.64115728,92.285,92.222,9.756]
[1772706531404,3.89115728,92.285,92.221,3.08286477]
[1772706531605,3.89115728,92.285,92.201,3.07880228]
[1772706531901,3.89115728,92.279,92.201,3.07880228]
[1772706532205,3.89115728,92.279,92.219,3.07880228]
[1772706532804,3.89115728,92.279,92.223,9.756]
[1772706533906,3.89115728,92.279,92.198,13.09023745]
[1772706533907,3.89115728,92.279,92.203,9.758]
[1772706534208,3.89115728,92.279,92.197,3.07685916]
[1772706535103,3.89115728,92.279,92.22,9.756]
[1772706535507,3.89115728,92.279,92.197,3.07685916]
[1772706535708,3.89115728,92.27,92.212,9.757]
[1772706536204,13.64215728,92.268,92.212,9.757]
[1772706536409,3.89115728,92.267,92.212,9.757]
[1772706536604,3.89115728,92.267,92.219,9.756]
[1772706537405,3.89115728,92.267,92.197,3.07685916]
[1772706537806,3.89115728,92.267,92.221,9.756]
[1772706538409,3.89115728,92.267,92.231,9.755]
[1772706539108,3.89115728,92.267,92.219,9.756]
[1772706539509,3.89115728,92.267,92.197,3.07685916]
[1772706539815,3.89115728,92.267,92.229,9.755]
[1772706540209,3.89115728,92.267,92.199,3.00810182]
[1772706540517,3.89115728,92.267,92.215,9.757]
[1772706540716,3.89115728,92.267,92.199,3.00810182]
[1772706541011,3.89115728,92.265,92.199,3.00810182]
[1772706541315,3.89115728,92.265,92.19,7.24821549]
[1772706541316,3.89115728,92.265,92.179,3.00810182]
[1772706541715,13.64515728,92.246,92.188,9.76]
[1772706541918,3.89115728,92.246,92.179,3.00810182]
[1772706542314,9.755,92.23,92.179,3.00810182]
[1772706544018,3.89115728,92.246,92.179,3.00810182]
[1772706544517,7.24821549,92.27,92.16,3.04159205]
[1772706544518,3.89115728,92.228,92.16,3.04159205]
[1772706545114,3.89115728,92.249,92.161,3.04159205]
[1772706545710,3.89115728,92.249,92.151,13.09023745]
[1772706545711,3.89115728,92.249,92.185,3.04654354]
[1772706545913,7.24821549,92.28,92.185,3.04654354]
[1772706545914,3.89115728,92.268,92.185,3.04654354]
[1772706546318,9.752,92.263,92.206,12.80454354]
[1772706546714,9.752,92.263,92.16,7.24821549]
[1772706546715,3.89115728,92.287,92.207,3.04654354]
[1772706547409,3.89115728,92.287,92.19,13.09023745]
[1772706547410,9.75,92.283,92.229,9.755]
[1772706548117,19.491,92.328,92.205,3.06340065]
[1772706548118,3.89115728,92.275,92.205,3.06340065]
[1772706548815,3.89115728,92.266,92.211,9.757]
[1772706549617,3.89115728,92.257,92.203,9.758]
[1772706550919,3.89115728,92.248,92.193,9.759]
[1772706551314,3.89115728,92.248,92.201,9.758]
[1772706551510,3.89115728,92.248,92.187,3.05961738]
[1772706552017,0.00015728,92.245,92.187,3.05961738]
[1772706552223,0.00015728,92.245,92.17,7.25357394]
[1772706552224,7.25357394,92.29,92.191,3.91346413]
[1772706552419,7.25357394,92.29,92.19,7.25357394]
[1772706552420,9.753,92.255,92.196,3.91346413]
[1772706552619,7.25357394,92.29,92.196,3.91346413]
[1772706553323,7.25357394,92.29,92.204,9.758]
[1772706553518,7.25357394,92.29,92.196,3.91346413]
[1772706554014,3.89115728,92.289,92.196,3.91346413]
[1772706554414,9.752,92.258,92.207,9.758]
[1772706554814,9.752,92.258,92.196,3.91346413]
[1772706555419,3.89115728,92.268,92.196,3.91346413]
[1772706555722,3.89115728,92.268,92.201,3.91346413]
[1772706555913,10.04488148,92.317,92.214,3.91346413]
[1772706555914,3.89115728,92.287,92.214,3.91346413]
[1772706556115,3.89115728,92.287,92.221,3.91346413]
[1772706556521,9.749,92.286,92.225,13.66946413]
[1772706556721,3.89115728,92.287,92.226,3.91346413]
[1772706557928,9.75,92.279,92.227,9.756]
[1772706558126,9.75,92.279,92.198,19.63535617]
[1772706558127,3.89115728,92.278,92.207,13.09023745]
[1772706558329,3.89115728,92.278,92.202,3.91346413]
[1772706558922,9.752,92.262,92.202,3.91346413]
[1772706559827,9.753,92.255,92.202,3.91346413]
[1772706560323,9.752,92.257,92.202,3.91346413]
[1772706560727,3.96897647,92.26,92.202,3.91346413]
[1772706561030,3.96897647,92.288,92.202,3.91346413]
[1772706561430,9.752,92.265,92.203,9.758]
[1772706562427,9.752,92.258,92.203,9.758]
[1772706563226,9.751,92.267,92.21,9.757]
[1772706563427,9.751,92.267,92.178,19.63535617]
[1772706563428,3.96897647,92.303,92.231,3.84480432]
[1772706563628,3.96897647,92.303,92.212,13.09023745]
[1772706563629,3.96897647,92.289,92.212,3.84480432]
[1772706563827,3.96897647,92.257,92.194,9.759]
[1772706564028,3.96897647,92.249,92.153,3.84480432]
[1772706564231,7.25357394,92.27,92.153,3.84480432]
[1772706564232,3.96897647,92.229,92.153,3.84480432]
[1772706565633,3.96897647,92.229,92.17,7.25357394]
[1772706565831,9.754,92.247,92.171,3.84480432]
[1772706566329,9.753,92.256,92.171,3.84480432]
[1772706566522,13.72197647,92.256,92.196,9.759]
[1772706567332,13.72197647,92.256,92.203,9.758]
[1772706568332,9.09445484,92.279,92.171,3.84480432]
[1772706568333,3.75458285,92.251,92.191,9.759]
[1772706568733,3.75458285,92.251,92.181,3.89679628]
[1772706569438,3.75458285,92.251,92.206,9.758]
[1772706569936,3.75458285,92.251,92.181,3.89679628]
[1772706569937,3.75458285,92.251,92.198,9.759]
[1772706570437,3.75458285,92.251,92.181,3.89679628]
[1772706571133,3.75458285,92.249,92.161,3.89679628]
[1772706572334,9.756,92.224,92.161,3.89679628]
[1772706573838,9.757,92.216,92.161,3.89679628]
[1772706575036,19.504,92.262,92.163,3.89679628]
[1772706575037,9.756,92.226,92.163,3.89679628]
[1772706575240,3.75458285,92.245,92.181,3.89679628]
[1772706575934,3.75458285,92.245,92.192,9.759]
[1772706576337,3.75458285,92.245,92.181,3.89679628]
[1772706576741,3.75458285,92.245,92.183,9.76]
[1772706577040,3.75458285,92.245,92.184,3.89679628]
[1772706577441,3.75458285,92.27,92.209,3.89679628]
[1772706578138,3.75458285,92.267,92.203,9.758]
[1772706578338,3.75458285,92.267,92.204,3.89679628]
[1772706578934,3.75458285,92.267,92.219,9.756]
[1772706579136,3.75458285,92.267,92.204,3.89679628]
[1772706579137,3.75458285,92.308,92.204,3.89679628]
[1772706579333,3.75458285,92.308,92.221,3.89679628]
[1772706579741,10.04488148,92.345,92.221,3.89679628]
[1772706579742,13.50258285,92.303,92.221,3.89679628]
[1772706580442,3.75458285,92.303,92.25,9.753]
[1772706580638,3.75458285,92.303,92.221,3.89679628]
[1772706581035,3.75458285,92.298,92.221,3.89679628]
[1772706581933,7.25357394,92.31,92.231,9.755]
[1772706581934,3.75458285,92.288,92.231,9.755]
[1772706583043,3.75458285,92.286,92.221,13.65279628]
[1772706583542,3.75458285,92.286,92.221,3.89679628]
[1772706584345,9.751,92.272,92.221,13.65279628]
[1772706584743,3.75458285,92.286,92.221,13.65279628]
[1772706585643,9.75,92.281,92.228,9.755]
[1772706585942,9.75,92.281,92.221,3.89679628]
[1772706586336,9.75,92.281,92.227,9.756]
[1772706586538,3.75458285,92.286,92.221,3.89679628]
[1772706586735,3.75458285,92.328,92.221,3.89679628]
[1772706587137,9.749,92.291,92.238,9.754]
[1772706588641,9.748,92.3,92.239,3.89679628]
[1772706588836,9.748,92.3,92.241,3.64954414]
[1772706589743,3.58050334,92.317,92.241,3.64954414]
[1772706589946,3.58050334,92.317,92.221,3.64954414]
[1772706590146,3.58050334,92.309,92.221,3.64954414]
[1772706590850,3.58050334,92.309,92.229,3.64954414]
[1772706592150,9.749,92.288,92.232,3.64954414]
[1772706593049,9.75,92.281,92.234,3.64954414]
[1772706593953,9.749,92.289,92.234,3.64954414]
[1772706594854,9.749,92.289,92.183,19.63535617]
[1772706594855,7.25357394,92.26,92.189,3.64954414]
[1772706595059,3.58050334,92.259,92.189,3.64954414]
[1772706595645,9.753,92.247,92.189,3.64954414]
[1772706596156,3.58050334,92.246,92.189,3.64954414]
[1772706597347,3.58050334,92.263,92.189,3.64954414]
[1772706597958,3.58050334,92.263,92.201,9.758]
[1772706599055,9.753,92.251,92.189,3.64954414]
[1772706599356,7.25357394,92.28,92.172,3.64954414]
[1772706599357,3.58050334,92.25,92.172,3.64954414]
[1772706599950,13.33550334,92.229,92.172,3.64954414]
[1772706600148,3.58050334,92.258,92.172,3.64954414]
[1772706600362,3.58050334,92.278,92.219,9.756]
[1772706600655,3.58050334,92.278,92.219,13.40554414]
[1772706600855,3.58050334,92.278,92.181,3.64954414]
[1772706601051,3.58050334,92.257,92.181,3.64954414]
[1772706601360,3.58050334,92.279,92.181,3.64954414]
[1772706601859,9.752,92.264,92.209,3.64954414]
[1772706602455,7.25357394,92.28,92.209,3.64954414]
[1772706602456,3.58050334,92.263,92.209,3.64954414]
[1772706602659,3.58050334,92.259,92.184,3.64954414]
[1772706602859,3.58050334,92.259,92.193,9.759]
[1772706603061,3.58050334,92.259,92.184,3.64954414]
[1772706603362,3.58050334,92.259,92.191,3.64954414]
[1772706603550,3.58050334,92.277,92.211,3.64954414]
[1772706604052,9.751,92.275,92.216,9.757]
[1772706604660,3.58050334,92.277,92.217,3.64954414]
[1772706604861,3.58050334,92.277,92.227,9.756]
[1772706605063,3.58050334,92.299,92.228,3.64954414]
[1772706605664,3.58050334,92.299,92.211,3.64954414]
[1772706606363,3.58050334,92.283,92.224,3.64954414]
[1772706607055,9.749,92.29,92.238,9.754]
[1772706607260,3.58050334,92.301,92.238,9.754]
[1772706607460,3.58050334,92.301,92.239,3.64954414]
[1772706608357,9.748,92.298,92.239,3.64954414]
[1772706609257,3.58050334,92.301,92.239,3.64954414]
[1772706609466,3.58050334,92.301,92.211,3.64954414]
[1772706609666,3.58050334,92.289,92.211,3.64954414]
[1772706610381,3.58050334,92.27,92.191,3.64954414]
[1772706610961,9.754,92.243,92.191,3.64954414]
[1772706611467,3.58050334,92.251,92.161,3.64954414]
[1772706611868,9.757,92.218,92.161,3.64954414]
[1772706612068,3.58050334,92.224,92.161,3.64954414]
[1772706612761,9.759,92.199,92.141,3.64954414]
[1772706612962,3.58050334,92.224,92.141,3.64954414]
[1772706613369,9.758,92.209,92.151,3.64954414]
[1772706614369,9.758,92.201,92.151,3.64954414]
[1772706614765,9.757,92.212,92.151,3.64954414]
[1772706614971,3.58050334,92.269,92.181,3.64954414]
[1772706615481,3.58050334,92.269,92.109,26.1804749]
[1772706615482,3.58050334,92.239,92.162,3.64954414]
[1772706616867,3.58050334,92.232,92.162,3.64954414]
[1772706618266,9.756,92.228,92.162,3.64954414]
[1772706618472,3.58050334,92.267,92.163,3.64954414]
[1772706618669,3.58050334,92.266,92.163,3.64954414]
[1772706618874,3.91144625,92.229,92.163,3.64954414]
[1772706620374,9.756,92.227,92.163,3.64954414]
[1772706620576,3.91144625,92.226,92.163,13.41154414]
[1772706620975,9.756,92.224,92.163,13.41154414]
[1772706621480,3.91144625,92.226,92.167,3.89443632]
[1772706622479,3.91144625,92.226,92.172,9.761]
[1772706622677,13.3931753,92.304,92.15,7.25213382]
[1772706622678,9.754,92.242,92.173,3.89443632]
[1772706622879,13.66544625,92.242,92.173,3.89443632]
[1772706623477,3.91144625,92.241,92.179,9.761]
[1772706623679,9.755,92.238,92.179,9.761]
[1772706624180,3.91144625,92.237,92.179,9.761]
[1772706625375,3.91144625,92.237,92.188,9.76]
[1772706625780,3.91144625,92.237,92.173,3.89443632]
[1772706626177,3.91144625,92.235,92.179,9.761]
[1772706626479,3.91144625,92.235,92.173,3.89443632]
[1772706628479,13.66644625,92.235,92.185,9.76]
[1772706628881,3.91144625,92.235,92.15,10.87116502]
[1772706629086,3.88676033,92.22,92.151,3.6190312]
[1772706630382,9.758,92.204,92.152,9.763]
[1772706630582,3.88676033,92.22,92.153,3.6190312]
[1772706630974,3.88676033,92.251,92.158,3.6190312]
[1772706631277,7.25213382,92.25,92.171,3.6190312]
[1772706631478,7.25213382,92.25,92.101,151.968]
[1772706631479,3.88676033,92.229,92.136,3.6190312]
[1772706631682,3.88676033,92.212,92.136,3.6190312]
[1772706632583,3.88676033,92.212,92.151,3.6190312]
[1772706633680,3.88676033,92.212,92.131,3.6190312]
[1772706633872,3.88676033,92.212,92.116,13.20119963]
[1772706633873,3.88676033,92.212,92.15,3.6190312]
[1772706634483,3.88676033,92.212,92.151,3.6190312]
[1772706635181,3.88676033,92.212,92.168,9.762]
[1772706635577,9.756,92.225,92.168,13.3810312]
[1772706635784,3.88676033,92.231,92.172,9.761]
[1772706637177,3.88676033,92.248,92.176,3.6190312]
[1772706638381,3.88676033,92.245,92.182,9.76]
[1772706639482,3.88676033,92.234,92.153,3.6190312]
[1772706640385,3.88676033,92.221,92.164,9.762]
[1772706641485,3.88676033,92.221,92.136,3.6190312]
[1772706641787,3.88676033,92.221,92.151,3.6190312]
[1772706642185,3.88676033,92.256,92.151,3.6190312]
[1772706643489,9.755,92.231,92.177,9.761]
[1772706644486,13.64176033,92.231,92.177,9.761]
[1772706644690,3.88676033,92.23,92.17,9.762]
[1772706645090,3.88676033,92.226,92.176,9.761]
[1772706645993,3.88676033,92.226,92.169,3.6190312]
[1772706647093,3.88676033,92.226,92.17,7.25213382]
[1772706647293,13.3931753,92.302,92.17,7.25213382]
[1772706647294,3.88676033,92.284,92.215,13.20119963]
[1772706647587,3.88676033,92.284,92.23,7.25213382]
[1772706647794,3.88676033,92.329,92.231,3.6190312]
[1772706648394,3.88676033,92.311,92.233,9.755]
[1772706648595,3.88676033,92.311,92.233,13.3740312]
[1772706648790,3.88676033,92.311,92.234,3.6190312]
[1772706648994,3.88676033,92.311,92.25,7.25213382]
[1772706649289,3.88676033,92.311,92.234,3.6190312]
[1772706649594,3.88676033,92.311,92.253,9.753]
[1772706652395,3.88676033,92.311,92.263,9.752]
[1772706652594,3.88676033,92.311,92.234,3.6190312]
[1772706653293,3.88676033,92.311,92.251,3.76175275]
[1772706653596,3.85221823,92.34,92.261,3.76175275]
[1772706654194,3.85221823,92.325,92.261,3.76175275]
[1772706655097,3.85221823,92.325,92.242,3.76175275]
[1772706655796,3.85221823,92.291,92.225,3.76175275]
[1772706656502,3.85221823,92.288,92.225,3.76175275]
[1772706657303,3.85221823,92.288,92.231,3.76175275]
[1772706658703,9.749,92.293,92.231,3.76175275]
[1772706659506,9.75,92.281,92.231,3.76175275]
[1772706659703,3.85221823,92.29,92.231,3.76175275]
[1772706659902,3.85221823,92.29,92.211,3.76175275]
[1772706660303,3.85221823,92.29,92.231,3.76175275]
[1772706660501,3.85221823,92.329,92.251,3.76175275]
[1772706660704,3.85221823,92.329,92.231,3.76175275]
[1772706660902,3.85221823,92.298,92.231,3.76175275]
[1772706662002,3.85221823,92.296,92.231,3.76175275]
[1772706662300,3.85221823,92.329,92.231,3.76175275]
[1772706662497,151.49,92.392,92.23,7.25213382]
[1772706662498,3.85221823,92.321,92.251,3.76175275]
[1772706663905,3.85221823,92.321,92.252,3.76175275]
[1772706664304,3.85221823,92.321,92.25,7.25213382]
[1772706664305,9.745,92.332,92.254,3.76175275]
[1772706664505,13.59721823,92.33,92.254,3.76175275]
[1772706664704,3.85221823,92.329,92.254,3.76175275]
[1772706665106,3.85221823,92.313,92.254,3.76175275]
[1772706665303,3.85221823,92.313,92.23,7.25213382]
[1772706665304,3.85221823,92.313,92.236,3.76175275]
[1772706665901,3.85221823,92.29,92.212,3.76175275]
[1772706666606,3.85221823,92.319,92.233,3.76175275]
[1772706667409,9.747,92.305,92.242,9.754]
[1772706668007,9.747,92.305,92.242,13.51575275]
[1772706668207,9.747,92.305,92.243,3.76175275]
[1772706668404,9.747,92.305,92.244,9.754]
[1772706668904,3.85221823,92.319,92.23,7.25213382]
[1772706668905,3.85221823,92.319,92.247,3.76175275]
[1772706669101,3.85221823,92.313,92.247,3.76175275]
[1772706669299,3.85221823,92.359,92.251,3.76175275]
[1772706670205,13.59721823,92.323,92.268,9.751]
[1772706670402,3.85221823,92.322,92.251,3.76175275]
[1772706671100,3.85221823,92.31,92.251,3.76175275]
[1772706671505,3.85221823,92.31,92.231,3.76175275]
[1772706672209,3.85221823,92.31,92.251,3.76175275]
[1772706672705,3.85221823,92.339,92.251,3.76175275]
[1772706673002,7.24139551,92.34,92.251,3.76175275]
[1772706673003,3.85221823,92.318,92.251,3.76175275]
[1772706673709,3.85221823,92.359,92.251,3.76175275]
[1772706674411,9.745,92.325,92.254,3.76175275]
[1772706674910,9.745,92.325,92.257,3.76175275]
[1772706675107,13.59621823,92.335,92.257,3.76175275]
[1772706675318,3.85221823,92.335,92.271,3.76175275]
[1772706677306,9.744,92.333,92.271,3.76175275]
[1772706678012,3.85221823,92.369,92.273,3.76175275]
[1772706678714,3.64862875,92.343,92.273,3.76175275]
[1772706679117,3.64862875,92.343,92.286,3.59962586]
[1772706679714,3.64862875,92.344,92.286,3.59962586]
[1772706679915,9.743,92.343,92.286,3.59962586]
[1772706680712,3.64862875,92.344,92.286,3.59962586]
[1772706681115,3.64862875,92.344,92.288,9.749]
[1772706681313,3.64862875,92.344,92.288,13.34862586]
[1772706681710,3.64862875,92.344,92.291,3.59962586]
[1772706682219,3.64862875,92.34,92.271,3.59962586]
[1772706682817,13.39262875,92.338,92.271,3.59962586]
[1772706683016,3.64862875,92.337,92.271,3.59962586]
[1772706683520,3.64862875,92.329,92.271,3.59962586]
[1772706683715,3.64862875,92.329,92.26,7.24139551]
[1772706683921,3.64862875,92.329,92.254,3.59962586]
[1772706684122,3.64862875,92.313,92.254,3.59962586]
[1772706685422,3.64862875,92.301,92.231,3.59962586]
[1772706686325,3.64862875,92.29,92.231,3.59962586]
[1772706687122,3.64862875,92.29,92.233,13.35462586]
[1772706687626,3.71379399,92.278,92.216,3.59962586]
[1772706688425,3.71379399,92.278,92.219,9.756]
[1772706688827,7.24139551,92.33,92.18,13.20119963]
[1772706688828,3.71379399,92.297,92.239,3.77222387]
[1772706689527,3.71379399,92.329,92.239,3.77222387]
[1772706689927,3.71379399,92.308,92.241,9.754]
[1772706690327,3.71379399,92.308,92.241,13.52622387]
[1772706691228,13.46079399,92.306,92.248,9.753]
[1772706691618,7.24139551,92.33,92.248,9.753]
[1772706691619,3.71379399,92.327,92.248,3.77222387]
[1772706691821,3.71379399,92.314,92.248,3.77222387]
[1772706692430,3.71379399,92.301,92.236,9.755]
[1772706693228,3.71379399,92.301,92.239,9.754]
[1772706693727,9.748,92.299,92.239,9.754]
[1772706693924,3.71379399,92.298,92.237,3.77222387]
[1772706694326,9.749,92.292,92.237,3.77222387]
[1772706695228,13.46279399,92.292,92.237,3.77222387]
[1772706695429,3.71379399,92.288,92.218,3.77222387]
[1772706697524,3.71379399,92.288,92.219,16.9734235]
[1772706697723,3.71379399,92.279,92.21,13.20119963]
[1772706698035,3.71379399,92.279,92.202,3.77222387]
[1772706698826,3.71379399,92.279,92.18,7.24139551]
[1772706698827,9.752,92.262,92.204,3.77222387]
[1772706699635,9.753,92.254,92.204,3.77222387]
[1772706700538,9.752,92.263,92.207,3.77222387]
[1772706701533,9.752,92.263,92.21,3.77222387]
[1772706702439,9.752,92.263,92.213,3.77222387]
[1772706704036,9.753,92.257,92.213,3.77222387]
[1772706704436,3.71379399,92.264,92.213,3.77222387]
[1772706704843,9.752,92.263,92.213,3.77222387]
[1772706705537,3.71379399,92.264,92.192,16.9734235]
[1772706705741,3.71379399,92.264,92.192,3.77222387]
[1772706706442,13.46579399,92.264,92.204,3.77222387]
[1772706707140,3.71379399,92.263,92.204,3.77222387]
[1772706707543,3.71379399,92.263,92.208,9.758]
[1772706708245,3.71379399,92.259,92.189,13.20119963]
[1772706708441,3.71379399,92.259,92.186,3.77222387]
[1772706708739,3.68262186,92.242,92.191,9.759]
[1772706709143,3.68262186,92.242,92.17,3.81866143]
[1772706710542,3.68262186,92.225,92.173,9.761]
[1772706710839,3.68262186,92.225,92.17,3.81866143]
[1772706711047,3.68262186,92.2,92.145,3.81866143]
[1772706711443,3.68262186,92.219,92.145,3.81866143]
[1772706711847,3.68262186,92.207,92.145,3.81866143]
[1772706712747,3.68262186,92.205,92.145,3.81866143]
[1772706713049,3.68262186,92.205,92.121,3.81866143]
[1772706713748,3.68262186,92.195,92.137,9.765]
[1772706714049,3.68262186,92.195,92.121,3.81866143]
[1772706714444,3.68262186,92.192,92.135,9.765]
[1772706714639,3.68262186,92.192,92.121,3.81866143]
[1772706715050,3.68262186,92.183,92.119,9.767]
[1772706715347,3.68262186,92.2,92.12,3.81866143]
[1772706715545,3.68262186,92.2,92.121,3.81866143]
[1772706716248,3.68262186,92.189,92.121,3.81866143]
[1772706717345,3.68262186,92.187,92.134,9.765]
[1772706717643,3.68262186,92.187,92.121,3.81866143]
[1772706718552,3.68262186,92.187,92.133,9.766]
[1772706719043,3.68262186,92.187,92.121,3.81866143]
[1772706719452,3.68262186,92.176,92.122,9.767]
[1772706720750,3.68262186,92.176,92.122,13.58566143]
[1772706721248,3.68262186,92.174,92.114,9.768]
[1772706721651,3.68262186,92.169,92.094,3.81866143]
[1772706722351,3.68262186,92.156,92.096,3.81866143]
[1772706722545,3.68262186,92.156,92.08,3.81866143]
[1772706722942,3.68262186,92.15,92.08,3.81866143]
[1772706723148,3.68262186,92.15,92.09,3.81866143]
[1772706723955,3.68262186,92.15,92.098,9.769]
[1772706724147,3.68262186,92.15,92.09,3.81866143]
[1772706724350,3.68262186,92.148,92.098,9.769]
[1772706724551,3.68262186,92.148,92.09,3.81866143]
[1772706724862,3.68262186,92.148,92.066,261.10402156]
[1772706724863,3.68262186,92.146,92.066,261.10402156]
[1772706725154,3.68262186,92.146,92.064,3.81866143]
[1772706725348,3.68262186,92.136,92.066,3.81866143]
[1772706725554,3.68262186,92.129,92.048,3.81866143]
[1772706725949,7.24139551,92.13,92.048,3.81866143]
[1772706726545,9.769,92.098,92.048,3.81866143]
[1772706726854,7.24139551,92.13,92.048,3.81866143]
[1772706727753,9.768,92.106,92.048,3.81866143]
[1772706728154,9.767,92.116,92.051,6.63303561]
[1772706728550,7.24139551,92.15,92.051,6.63303561]
[1772706729049,26.76539551,92.17,92.061,6.63303561]
[1772706729655,9.767,92.123,92.062,6.62329907]
[1772706730152,26.76539551,92.17,92.081,6.62329907]
[1772706730153,7.24139551,92.17,92.081,6.62329907]
[1772706730454,7.26320251,92.2,92.111,6.62329907]
[1772706730848,9.762,92.17,92.113,6.62329907]
[1772706732049,9.762,92.17,92.114,9.768]
[1772706732253,9.761,92.178,92.131,6.52586374]
[1772706732456,19.513,92.219,92.131,6.52586374]
[1772706732754,151.721,92.252,92.131,6.52586374]
[1772706732755,7.26320251,92.21,92.131,6.52586374]
[1772706733657,7.26320251,92.23,92.131,6.52586374]
[1772706734059,9.76,92.186,92.137,6.52423405]
[1772706734456,7.26320251,92.23,92.137,6.52423405]
[1772706734758,9.761,92.178,92.137,6.52423405]
[1772706736261,9.76,92.187,92.137,6.52423405]
[1772706736661,9.761,92.179,92.137,6.52423405]
[1772706737661,7.26320251,92.24,92.141,6.53605052]
[1772706738162,9.76,92.19,92.141,6.53605052]
[1772706738559,19.51,92.237,92.141,6.53605052]
[1772706738758,7.26320251,92.26,92.161,6.53605052]
[1772706739762,19.505,92.258,92.161,6.53605052]
[1772706739964,151.648,92.296,92.161,6.53605052]
[1772706740158,7.26320251,92.27,92.181,6.52748174]